[Event "Early-Titled-Tuesday-Blitz-April-23-2024"]
[Site "Chess.com"]
[Date "2024.04.23"]
[Round "7"]
[White "Kobalia"]
[Black "koncheto"]
[Result "0-1"]
[WhiteElo "2789"]
[BlackElo "2624"]
[TimeControl "180+1"]
[EndTime "9:20:13 PDT"]
[Termination "koncheto won on time"]

1. d4 {[%clk 0:02:51.9]} 1... Nf6 {[%clk 0:02:59.7]} 2. Nf3 {[%clk 0:02:51.6]}
2... e6 {[%clk 0:03:00.2]} 3. Bf4 {[%clk 0:02:51.3]} 3... c5 {[%clk 0:03:00.8]}
4. e3 {[%clk 0:02:51.5]} 4... d5 {[%clk 0:03:01.3]} 5. c3 {[%clk 0:02:50.8]}
5... Bd6 {[%clk 0:03:01.9]} 6. Nbd2 {[%clk 0:02:49.9]} 6... Qc7 {[%clk
0:03:02.5]} 7. Bxd6 {[%clk 0:02:48.6]} 7... Qxd6 {[%clk 0:03:02.3]} 8. Rc1
{[%clk 0:02:47.4]} 8... Nc6 {[%clk 0:03:00.4]} 9. dxc5 {[%clk 0:02:44.3]} 9...
Qxc5 {[%clk 0:03:00.5]} 10. c4 {[%clk 0:02:44.9]} 10... O-O {[%clk 0:02:58.7]}
11. cxd5 {[%clk 0:02:44.9]} 11... Qxd5 {[%clk 0:02:59.6]} 12. Bc4 {[%clk
0:02:44.9]} 12... Qd6 {[%clk 0:02:55.8]} 13. O-O {[%clk 0:02:43.4]} 13... Bd7
{[%clk 0:02:55.9]} 14. Qe2 {[%clk 0:02:43.5]} 14... Rfd8 {[%clk 0:02:55.7]} 15.
Nb3 {[%clk 0:02:41.5]} 15... Rac8 {[%clk 0:02:53.6]} 16. Rfd1 {[%clk 0:02:39.7]}
16... Qe7 {[%clk 0:02:53.9]} 17. h3 {[%clk 0:02:29.9]} 17... Nb4 {[%clk
0:02:46.4]} 18. a3 {[%clk 0:02:27.9]} 18... Nbd5 {[%clk 0:02:42.4]} 19. e4
{[%clk 0:02:25.3]} 19... Nb6 {[%clk 0:02:28.9]} 20. e5 {[%clk 0:02:24.9]} 20...
Nfd5 {[%clk 0:02:29]} 21. Nbd4 {[%clk 0:02:01.5]} 21... Nxc4 {[%clk 0:02:05.1]}
22. Rxc4 {[%clk 0:02:02.4]} 22... Rxc4 {[%clk 0:02:05.5]} 23. Qxc4 {[%clk
0:02:01.8]} 23... Rc8 {[%clk 0:02:06.4]} 24. Qb3 {[%clk 0:01:59.2]} 24... b6
{[%clk 0:02:00.9]} 25. Nd2 {[%clk 0:01:56.7]} 25... Qg5 {[%clk 0:01:39.1]} 26.
N4f3 {[%clk 0:01:56.3]} 26... Qf5 {[%clk 0:01:33.4]} 27. Nc4 {[%clk 0:01:43.2]}
27... Qf4 {[%clk 0:01:32.4]} 28. Rd4 {[%clk 0:01:22.8]} 28... Qc1+ {[%clk
0:01:32.4]} 29. Kh2 {[%clk 0:01:23.2]} 29... b5 {[%clk 0:01:14.5]} 30. Nd6
{[%clk 0:01:20.8]} 30... Rc2 {[%clk 0:01:13.3]} 31. Qd3 {[%clk 0:01:02.5]} 31...
Bc6 {[%clk 0:00:48.4]} 32. Rg4 {[%clk 0:00:52.1]} 32... Qxb2 {[%clk 0:00:26.6]}
33. Nxf7 {[%clk 0:00:44.5]} 33... Rxf2 {[%clk 0:00:14.8]} 34. Nh6+ {[%clk
0:00:26.6]} 34... Kh8 {[%clk 0:00:14.9]} 35. Ng5 {[%clk 0:00:23.9]} 35... g6
{[%clk 0:00:04.7]} 36. Qg3 {[%clk 0:00:13.7]} 36... Ne3 {[%clk 0:00:02.7]} 37.
Ne4 {[%clk 0:00:04.9]} 37... Nf1+ {[%clk 0:00:02.3]} 38. Kg1 {[%clk 0:00:02.9]}
38... Nxg3 {[%clk 0:00:03.2]} 0-1

[Event "Early-Titled-Tuesday-Blitz-April-23-2024"]
[Site "Chess.com"]
[Date "2024.04.23"]
[Round "7"]
[White "chesslh93"]
[Black "ChessBliss09"]
[Result "0-1"]
[WhiteElo "2369"]
[BlackElo "2240"]
[TimeControl "180+1"]
[EndTime "9:20:13 PDT"]
[Termination "ChessBliss09 won by checkmate"]

1. e4 {[%clk 0:03:00.9]} 1... e5 {[%clk 0:02:59.4]} 2. Nf3 {[%clk 0:03:01.1]}
2... Nc6 {[%clk 0:02:59.7]} 3. Bb5 {[%clk 0:03:01.7]} 3... Nf6 {[%clk
0:02:59.2]} 4. O-O {[%clk 0:03:01.5]} 4... Nxe4 {[%clk 0:02:58.9]} 5. d4 {[%clk
0:03:01.8]} 5... Nd6 {[%clk 0:02:57.5]} 6. Bxc6 {[%clk 0:03:02.1]} 6... dxc6
{[%clk 0:02:57.7]} 7. dxe5 {[%clk 0:03:03]} 7... Nf5 {[%clk 0:02:58.1]} 8. Qxd8+
{[%clk 0:03:03.9]} 8... Kxd8 {[%clk 0:02:58.8]} 9. Nc3 {[%clk 0:03:00.1]} 9...
Be7 {[%clk 0:02:54]} 10. Bg5 {[%clk 0:02:58.1]} 10... Bxg5 {[%clk 0:02:51.9]}
11. Nxg5 {[%clk 0:02:59]} 11... Ke7 {[%clk 0:02:52.1]} 12. Rad1 {[%clk
0:02:56.6]} 12... Be6 {[%clk 0:02:50.3]} 13. h3 {[%clk 0:02:43.2]} 13... h6
{[%clk 0:02:49.8]} 14. Nf3 {[%clk 0:02:39.2]} 14... g5 {[%clk 0:02:40]} 15. a3
{[%clk 0:02:33]} 15... Rhd8 {[%clk 0:02:38.2]} 16. Rfe1 {[%clk 0:02:31.5]} 16...
Rd7 {[%clk 0:02:34.2]} 17. Rxd7+ {[%clk 0:02:30.5]} 17... Bxd7 {[%clk
0:02:33.2]} 18. Ne4 {[%clk 0:02:23.8]} 18... b6 {[%clk 0:02:31.9]} 19. Rd1
{[%clk 0:02:13.5]} 19... Be6 {[%clk 0:02:27.1]} 20. c3 {[%clk 0:01:52.3]} 20...
Bd5 {[%clk 0:02:22.6]} 21. Re1 {[%clk 0:01:21.5]} 21... Rd8 {[%clk 0:02:16]} 22.
Ned2 {[%clk 0:01:08.9]} 22... Ng7 {[%clk 0:01:56.1]} 23. Nd4 {[%clk 0:01:03.2]}
23... c5 {[%clk 0:01:51]} 24. N4f3 {[%clk 0:00:59.4]} 24... Ne6 {[%clk
0:01:47.8]} 25. g3 {[%clk 0:00:37.4]} 25... h5 {[%clk 0:01:36.5]} 26. Ne4 {[%clk
0:00:29.3]} 26... g4 {[%clk 0:01:30.6]} 27. hxg4 {[%clk 0:00:30.2]} 27... hxg4
{[%clk 0:01:30.7]} 28. Nh4 {[%clk 0:00:26.6]} 28... Bxe4 {[%clk 0:01:21.5]} 29.
Rxe4 {[%clk 0:00:27.5]} 29... Rd2 {[%clk 0:01:21.7]} 30. b4 {[%clk 0:00:22.1]}
30... Ra2 {[%clk 0:01:19.3]} 31. Nf5+ {[%clk 0:00:18.7]} 31... Kd7 {[%clk
0:01:17.3]} 32. Rxg4 {[%clk 0:00:11.9]} 32... Rxa3 {[%clk 0:01:14.5]} 33. bxc5
{[%clk 0:00:07.7]} 33... Nxc5 {[%clk 0:01:12.5]} 34. Rg7 {[%clk 0:00:06.7]}
34... Ke6 {[%clk 0:01:09.6]} 35. Nd4+ {[%clk 0:00:07]} 35... Kxe5 {[%clk
0:01:08.6]} 36. Nb5 {[%clk 0:00:05.7]} 36... Rb3 {[%clk 0:01:02.5]} 37. Nxa7
{[%clk 0:00:04.5]} 37... Rxc3 {[%clk 0:01:02]} 38. Rxf7 {[%clk 0:00:04.1]} 38...
Ne4 {[%clk 0:00:57.9]} 39. Nb5 {[%clk 0:00:02.8]} 39... Rc1+ {[%clk 0:00:57.9]}
40. Kg2 {[%clk 0:00:03.1]} 40... c6 {[%clk 0:00:54.7]} 41. Na3 {[%clk
0:00:01.9]} 41... b5 {[%clk 0:00:49.1]} 42. Re7+ {[%clk 0:00:01.8]} 42... Kd4
{[%clk 0:00:47.8]} 43. f3 {[%clk 0:00:01.8]} 43... Nf6 {[%clk 0:00:41.3]} 44.
Re6 {[%clk 0:00:01.3]} 44... Nd5 {[%clk 0:00:40.5]} 45. g4 {[%clk 0:00:01.4]}
45... b4 {[%clk 0:00:38]} 46. Kg3 {[%clk 0:00:01.2]} 46... bxa3 {[%clk
0:00:37.8]} 47. g5 {[%clk 0:00:01.4]} 47... a2 {[%clk 0:00:37.4]} 48. g6 {[%clk
0:00:01.8]} 48... a1=Q {[%clk 0:00:37.6]} 49. g7 {[%clk 0:00:01.7]} 49... Rg1+
{[%clk 0:00:38.2]} 50. Kh2 {[%clk 0:00:01.6]} 50... Rh1+ {[%clk 0:00:37.7]} 51.
Kg3 {[%clk 0:00:01.6]} 51... Qg1# {[%clk 0:00:37.7]} 0-1

[Event "Early-Titled-Tuesday-Blitz-April-23-2024"]
[Site "Chess.com"]
[Date "2024.04.23"]
[Round "7"]
[White "Likvidator228"]
[Black "Heinza9"]
[Result "1-0"]
[WhiteElo "2504"]
[BlackElo "2315"]
[TimeControl "180+1"]
[EndTime "9:20:15 PDT"]
[Termination "Likvidator228 won by resignation"]

1. c4 {[%clk 0:01:41.1]} 1... f5 {[%clk 0:02:59.3]} 2. Nc3 {[%clk 0:01:37.8]}
2... Nf6 {[%clk 0:02:59.4]} 3. g3 {[%clk 0:01:38]} 3... g6 {[%clk 0:02:59.6]} 4.
Bg2 {[%clk 0:01:38.8]} 4... Bg7 {[%clk 0:03:00]} 5. Nf3 {[%clk 0:01:39.3]} 5...
O-O {[%clk 0:03:00.2]} 6. O-O {[%clk 0:01:39.9]} 6... d6 {[%clk 0:03:00.6]} 7.
d3 {[%clk 0:01:40.1]} 7... e5 {[%clk 0:03:00.3]} 8. Rb1 {[%clk 0:01:40.5]} 8...
a5 {[%clk 0:02:59.8]} 9. a3 {[%clk 0:01:40.6]} 9... Nc6 {[%clk 0:02:59.8]} 10.
b4 {[%clk 0:01:40.6]} 10... axb4 {[%clk 0:03:00.1]} 11. axb4 {[%clk 0:01:41]}
11... h6 {[%clk 0:02:59.2]} 12. b5 {[%clk 0:01:41.1]} 12... Na5 {[%clk
0:02:59.3]} 13. Bb2 {[%clk 0:01:32.9]} 13... g5 {[%clk 0:02:55.5]} 14. Nd2
{[%clk 0:01:32.3]} 14... c6 {[%clk 0:02:53.3]} 15. Ra1 {[%clk 0:01:28.1]} 15...
Be6 {[%clk 0:02:46.2]} 16. Nb3 {[%clk 0:01:04.4]} 16... d5 {[%clk 0:02:30.6]}
17. bxc6 {[%clk 0:00:59]} 17... bxc6 {[%clk 0:02:29.7]} 18. Nxa5 {[%clk
0:00:48.9]} 18... Rxa5 {[%clk 0:02:29]} 19. cxd5 {[%clk 0:00:48.3]} 19... cxd5
{[%clk 0:02:27.9]} 20. Qb3 {[%clk 0:00:47.6]} 20... Bf7 {[%clk 0:02:14]} 21.
Rxa5 {[%clk 0:00:46.4]} 21... Qxa5 {[%clk 0:02:14.1]} 22. Ra1 {[%clk 0:00:44.9]}
22... Qd8 {[%clk 0:02:12.6]} 23. Nb5 {[%clk 0:00:21.1]} 23... d4 {[%clk
0:02:04.9]} 24. Qb4 {[%clk 0:00:20.7]} 24... Nd5 {[%clk 0:02:02.4]} 25. Qd6
{[%clk 0:00:19.8]} 25... Nc3 {[%clk 0:01:42.4]} 26. Qxd8 {[%clk 0:00:18]} 26...
Rxd8 {[%clk 0:01:35.5]} 27. Nxc3 {[%clk 0:00:17.8]} 27... dxc3 {[%clk
0:01:35.4]} 28. Bxc3 {[%clk 0:00:18.7]} 28... Kh7 {[%clk 0:01:23.2]} 29. h3
{[%clk 0:00:19]} 29... Kg6 {[%clk 0:01:23.1]} 30. g4 {[%clk 0:00:19.3]} 30...
fxg4 {[%clk 0:01:16.9]} 31. hxg4 {[%clk 0:00:18.8]} 31... Be6 {[%clk 0:01:16.8]}
32. Ra6 {[%clk 0:00:18.3]} 32... Kf7 {[%clk 0:01:16]} 33. Bf3 {[%clk 0:00:18.7]}
33... Rc8 {[%clk 0:01:14.1]} 34. Ra7+ {[%clk 0:00:18.8]} 34... Kf6 {[%clk
0:01:12.1]} 35. Bxe5+ {[%clk 0:00:17.5]} 35... Kxe5 {[%clk 0:01:12.3]} 36. Rxg7
{[%clk 0:00:18.1]} 36... Kf6 {[%clk 0:01:07.3]} 37. Rh7 {[%clk 0:00:17.8]} 37...
Ke5 {[%clk 0:00:55.6]} 38. Rxh6 {[%clk 0:00:17.7]} 38... Rc2 {[%clk 0:00:45.2]}
39. Kg2 {[%clk 0:00:17.4]} 39... Bf7 {[%clk 0:00:26.2]} 40. Rh7 {[%clk
0:00:13.9]} 40... Kf6 {[%clk 0:00:25]} 41. Rh8 {[%clk 0:00:12.4]} 41... Be6
{[%clk 0:00:23.3]} 42. Ra8 {[%clk 0:00:09.8]} 42... Rb2 {[%clk 0:00:20.5]} 43.
Ra6 {[%clk 0:00:10.2]} 43... Ke5 {[%clk 0:00:20.6]} 44. d4+ {[%clk 0:00:08.8]}
1-0

[Event "Early-Titled-Tuesday-Blitz-April-23-2024"]
[Site "Chess.com"]
[Date "2024.04.23"]
[Round "7"]
[White "NigiriSushies"]
[Black "mapleaff"]
[Result "1-0"]
[WhiteElo "2441"]
[BlackElo "2267"]
[TimeControl "180+1"]
[EndTime "9:20:16 PDT"]
[Termination "NigiriSushies won by resignation"]

1. Nf3 {[%clk 0:03:00.9]} 1... Nf6 {[%clk 0:02:59.1]} 2. b3 {[%clk 0:03:01.1]}
2... g6 {[%clk 0:02:58.4]} 3. Bb2 {[%clk 0:03:01.5]} 3... Bg7 {[%clk 0:02:59.1]}
4. g3 {[%clk 0:03:02.1]} 4... b6 {[%clk 0:02:55.8]} 5. Bg2 {[%clk 0:03:01.7]}
5... Bb7 {[%clk 0:02:56.5]} 6. O-O {[%clk 0:03:02.4]} 6... O-O {[%clk
0:02:56.7]} 7. d3 {[%clk 0:03:01.3]} 7... d6 {[%clk 0:02:56]} 8. Nbd2 {[%clk
0:02:54.3]} 8... Nbd7 {[%clk 0:02:56.4]} 9. Re1 {[%clk 0:02:41.7]} 9... e5
{[%clk 0:02:44.2]} 10. e4 {[%clk 0:02:25.2]} 10... Nc5 {[%clk 0:02:29.6]} 11.
Nf1 {[%clk 0:02:11.1]} 11... Ne6 {[%clk 0:02:22.7]} 12. h3 {[%clk 0:02:06.5]}
12... Nd7 {[%clk 0:02:19.4]} 13. Kh2 {[%clk 0:02:05.1]} 13... f5 {[%clk
0:02:18]} 14. exf5 {[%clk 0:02:01.4]} 14... gxf5 {[%clk 0:02:18.9]} 15. Nh4
{[%clk 0:01:38.4]} 15... Bxg2 {[%clk 0:02:16.7]} 16. Nxg2 {[%clk 0:01:39.3]}
16... f4 {[%clk 0:01:42.7]} 17. Qg4 {[%clk 0:01:35.1]} 17... Qf6 {[%clk
0:01:39.1]} 18. Nd2 {[%clk 0:01:19.8]} 18... Qg6 {[%clk 0:01:37.2]} 19. gxf4
{[%clk 0:00:28.5]} 19... Qxg4 {[%clk 0:01:35.7]} 20. hxg4 {[%clk 0:00:29.4]}
20... Nxf4 {[%clk 0:01:36]} 21. Ne4 {[%clk 0:00:24.5]} 21... Nf6 {[%clk
0:01:15.2]} 22. Nxf4 {[%clk 0:00:17.4]} 22... Nxg4+ {[%clk 0:01:15.3]} 23. Kg3
{[%clk 0:00:17.5]} 23... Rxf4 {[%clk 0:01:04.1]} 24. Bc1 {[%clk 0:00:17.9]}
24... h5 {[%clk 0:00:54.2]} 25. Bxf4 {[%clk 0:00:17.4]} 25... exf4+ {[%clk
0:00:55.1]} 26. Kxf4 {[%clk 0:00:17.5]} 26... Rf8+ {[%clk 0:00:54.3]} 27. Kg3
{[%clk 0:00:17.8]} 27... Bxa1 {[%clk 0:00:54.7]} 28. Rxa1 {[%clk 0:00:17.1]}
28... Ne5 {[%clk 0:00:55.2]} 29. Rh1 {[%clk 0:00:16]} 29... Rf5 {[%clk
0:00:47.8]} 30. Rxh5 {[%clk 0:00:15.2]} 30... Rxh5 {[%clk 0:00:48.4]} 31. Nf6+
{[%clk 0:00:14.9]} 31... Kf7 {[%clk 0:00:49.3]} 32. Nxh5 {[%clk 0:00:15.8]}
32... Nc6 {[%clk 0:00:48.7]} 33. c3 {[%clk 0:00:13]} 33... b5 {[%clk 0:00:43]}
34. Nf4 {[%clk 0:00:13]} 34... Ke7 {[%clk 0:00:32.7]} 35. Nd5+ {[%clk
0:00:11.9]} 35... Kd7 {[%clk 0:00:33.3]} 36. f4 {[%clk 0:00:12.6]} 36... Nd8
{[%clk 0:00:28.8]} 37. b4 {[%clk 0:00:10.6]} 37... c6 {[%clk 0:00:29]} 38. Nf6+
{[%clk 0:00:09.9]} 38... Ke6 {[%clk 0:00:28.8]} 39. Ne4 {[%clk 0:00:10.6]} 39...
Nf7 {[%clk 0:00:24.8]} 40. Ng5+ {[%clk 0:00:09.9]} 40... Nxg5 {[%clk 0:00:21.7]}
41. fxg5 {[%clk 0:00:10.8]} 41... Kf5 {[%clk 0:00:21.5]} 42. Kh4 {[%clk
0:00:11.3]} 42... Kg6 {[%clk 0:00:22.1]} 43. Kg4 {[%clk 0:00:11.8]} 43... c5
{[%clk 0:00:22.2]} 44. d4 {[%clk 0:00:10.6]} 44... c4 {[%clk 0:00:18.7]} 45. d5
{[%clk 0:00:09.8]} 45... a6 {[%clk 0:00:17.7]} 46. a3 {[%clk 0:00:09.8]} 46...
Kg7 {[%clk 0:00:18.1]} 47. Kf5 {[%clk 0:00:10.2]} 47... Kf7 {[%clk 0:00:19]} 48.
g6+ {[%clk 0:00:10.1]} 48... Ke7 {[%clk 0:00:19.6]} 49. g7 {[%clk 0:00:10]} 1-0

[Event "Early-Titled-Tuesday-Blitz-April-23-2024"]
[Site "Chess.com"]
[Date "2024.04.23"]
[Round "7"]
[White "BardArtem"]
[Black "SirStrateg"]
[Result "1/2-1/2"]
[WhiteElo "2851"]
[BlackElo "2683"]
[TimeControl "180+1"]
[EndTime "9:20:18 PDT"]
[Termination "Game drawn - insufficient material"]

1. e4 {[%clk 0:03:00.9]} 1... d6 {[%clk 0:02:59.4]} 2. d4 {[%clk 0:03:00.9]}
2... Nf6 {[%clk 0:02:59.8]} 3. Bd3 {[%clk 0:02:58.6]} 3... e5 {[%clk 0:02:59.6]}
4. c3 {[%clk 0:02:59.2]} 4... Nc6 {[%clk 0:02:59.7]} 5. Nf3 {[%clk 0:02:59.5]}
5... Bg4 {[%clk 0:02:58.8]} 6. d5 {[%clk 0:02:45.1]} 6... Nb8 {[%clk 0:02:59.1]}
7. Nbd2 {[%clk 0:02:43.4]} 7... Be7 {[%clk 0:02:58.7]} 8. h3 {[%clk 0:02:43.5]}
8... Bxf3 {[%clk 0:02:58.8]} 9. Nxf3 {[%clk 0:02:43.6]} 9... O-O {[%clk
0:02:59.2]} 10. O-O {[%clk 0:02:44.1]} 10... Nbd7 {[%clk 0:02:57.8]} 11. Re1
{[%clk 0:02:43.2]} 11... h6 {[%clk 0:02:57.6]} 12. c4 {[%clk 0:02:37.8]} 12...
Nh7 {[%clk 0:02:57]} 13. Be3 {[%clk 0:02:33.3]} 13... b6 {[%clk 0:02:53.8]} 14.
b4 {[%clk 0:02:33]} 14... a5 {[%clk 0:02:53.6]} 15. a3 {[%clk 0:02:33.2]} 15...
Bg5 {[%clk 0:02:52.9]} 16. Nxg5 {[%clk 0:02:32.6]} 16... hxg5 {[%clk 0:02:53.1]}
17. Rc1 {[%clk 0:02:20]} 17... axb4 {[%clk 0:02:52.7]} 18. axb4 {[%clk
0:02:20.9]} 18... Qe7 {[%clk 0:02:52.2]} 19. c5 {[%clk 0:02:03]} 19... bxc5
{[%clk 0:02:52.2]} 20. Bb5 {[%clk 0:01:57.8]} 20... Ndf6 {[%clk 0:02:41.8]} 21.
bxc5 {[%clk 0:01:35.9]} 21... Nxe4 {[%clk 0:02:38.4]} 22. Bd3 {[%clk 0:01:27]}
22... Nxc5 {[%clk 0:02:30.7]} 23. Bxc5 {[%clk 0:01:26.9]} 23... dxc5 {[%clk
0:02:31.3]} 24. Bxh7+ {[%clk 0:01:27.2]} 24... Kxh7 {[%clk 0:02:31.4]} 25. Qc2+
{[%clk 0:01:28.1]} 25... Kg8 {[%clk 0:02:15.8]} 26. Qxc5 {[%clk 0:01:29]} 26...
Qxc5 {[%clk 0:02:09.1]} 27. Rxc5 {[%clk 0:01:29.9]} 27... f6 {[%clk 0:02:07.9]}
28. Rxc7 {[%clk 0:01:26.3]} 28... Rad8 {[%clk 0:02:08.1]} 29. Rd1 {[%clk
0:01:25.6]} 29... Rd6 {[%clk 0:02:08.1]} 30. f3 {[%clk 0:01:15.3]} 30... Rfd8
{[%clk 0:02:08.2]} 31. Rc5 {[%clk 0:01:16]} 31... Kf7 {[%clk 0:02:08.3]} 32. Kf2
{[%clk 0:01:15.9]} 32... R8d7 {[%clk 0:02:01]} 33. g4 {[%clk 0:01:15.8]} 33...
g6 {[%clk 0:01:58.8]} 34. Ke3 {[%clk 0:01:14.5]} 34... f5 {[%clk 0:01:59.3]} 35.
Rd3 {[%clk 0:01:05.6]} 35... Kf6 {[%clk 0:01:59.8]} 36. Rd2 {[%clk 0:00:27.5]}
36... Ke7 {[%clk 0:01:57.9]} 37. Rd1 {[%clk 0:00:23]} 37... Ra7 {[%clk
0:01:56.5]} 38. Rd3 {[%clk 0:00:20]} 38... Ra4 {[%clk 0:01:52.1]} 39. Rb3 {[%clk
0:00:18.3]} 39... Rd4 {[%clk 0:01:39.9]} 40. Rb7+ {[%clk 0:00:17.9]} 40... Kf6
{[%clk 0:01:39.7]} 41. Rcc7 {[%clk 0:00:09.4]} 41... f4+ {[%clk 0:01:36.2]} 42.
Ke2 {[%clk 0:00:08.3]} 42... R6xd5 {[%clk 0:01:36.7]} 43. Rf7+ {[%clk
0:00:08.2]} 43... Ke6 {[%clk 0:01:37.3]} 44. Rbe7+ {[%clk 0:00:07.6]} 44... Kd6
{[%clk 0:01:37.8]} 45. Rd7+ {[%clk 0:00:08.1]} 45... Kc5 {[%clk 0:01:37.9]} 46.
Rxd5+ {[%clk 0:00:06.2]} 46... Kxd5 {[%clk 0:01:35.3]} 47. Rf6 {[%clk
0:00:05.7]} 47... e4 {[%clk 0:01:31.5]} 48. Rxg6 {[%clk 0:00:05.8]} 48... exf3+
{[%clk 0:01:29.5]} 49. Kxf3 {[%clk 0:00:06.7]} 49... Rd3+ {[%clk 0:01:30]} 50.
Kg2 {[%clk 0:00:04.3]} 50... Rd2+ {[%clk 0:01:27.1]} 51. Kf1 {[%clk 0:00:04.2]}
51... Ke4 {[%clk 0:01:25.7]} 52. Rxg5 {[%clk 0:00:04.3]} 52... Kf3 {[%clk
0:01:26.1]} 53. Ke1 {[%clk 0:00:02.9]} 53... Rh2 {[%clk 0:01:26]} 54. Ra5 {[%clk
0:00:02.5]} 54... Rh1+ {[%clk 0:01:18.8]} 55. Kd2 {[%clk 0:00:02.9]} 55... Kf2
{[%clk 0:01:18.1]} 56. g5 {[%clk 0:00:02.8]} 56... Rxh3 {[%clk 0:01:18.1]} 57.
g6 {[%clk 0:00:02.4]} 57... Rg3 {[%clk 0:01:18.4]} 58. Ra6 {[%clk 0:00:03]}
58... f3 {[%clk 0:01:18.8]} 59. Rb6 {[%clk 0:00:03.3]} 59... Kg2 {[%clk
0:01:16.1]} 60. Rf6 {[%clk 0:00:02.3]} 60... f2 {[%clk 0:01:16.2]} 61. Ke2
{[%clk 0:00:03.2]} 61... Kg1 {[%clk 0:01:06.8]} 62. Rxf2 {[%clk 0:00:02.3]}
62... Rxg6 {[%clk 0:01:07.2]} 63. Rf3 {[%clk 0:00:02.7]} 63... Rg2+ {[%clk
0:01:07.4]} 64. Ke3 {[%clk 0:00:02.8]} 64... Kh2 {[%clk 0:01:07.6]} 65. Rf8
{[%clk 0:00:02.5]} 65... Rg3+ {[%clk 0:01:07.8]} 66. Kf4 {[%clk 0:00:02.5]}
66... Kg2 {[%clk 0:01:07.4]} 67. Re8 {[%clk 0:00:02.2]} 67... Rf3+ {[%clk
0:01:07.7]} 68. Ke4 {[%clk 0:00:02.6]} 68... Rf2 {[%clk 0:01:08.3]} 69. Re5
{[%clk 0:00:03]} 69... Re2+ {[%clk 0:01:08.6]} 70. Kf5 {[%clk 0:00:03.6]} 70...
Rxe5+ {[%clk 0:01:09.5]} 71. Kxe5 {[%clk 0:00:04.5]} 1/2-1/2

[Event "Early-Titled-Tuesday-Blitz-April-23-2024"]
[Site "Chess.com"]
[Date "2024.04.23"]
[Round "7"]
[White "Mikhail_Bryakin"]
[Black "SahibSinghKnight"]
[Result "1/2-1/2"]
[WhiteElo "2838"]
[BlackElo "2639"]
[TimeControl "180+1"]
[EndTime "9:20:20 PDT"]
[Termination "Game drawn by repetition"]

1. e4 {[%clk 0:02:54.1]} 1... e6 {[%clk 0:02:54.7]} 2. Qe2 {[%clk 0:02:52.3]}
2... Be7 {[%clk 0:02:50.8]} 3. Nc3 {[%clk 0:02:51.9]} 3... d5 {[%clk 0:02:50.9]}
4. Nf3 {[%clk 0:02:50.4]} 4... Nf6 {[%clk 0:02:46.3]} 5. g3 {[%clk 0:02:51]}
5... dxe4 {[%clk 0:02:23.8]} 6. Ng5 {[%clk 0:02:48.2]} 6... Nc6 {[%clk
0:02:22.3]} 7. Ngxe4 {[%clk 0:02:46.4]} 7... Nd4 {[%clk 0:02:22.7]} 8. Qd3
{[%clk 0:02:43.1]} 8... Ng4 {[%clk 0:02:10]} 9. f4 {[%clk 0:02:31.3]} 9... c5
{[%clk 0:02:09.7]} 10. Bg2 {[%clk 0:02:30]} 10... c4 {[%clk 0:02:08.8]} 11. Qxc4
{[%clk 0:02:22.4]} 11... Nxc2+ {[%clk 0:02:08.8]} 12. Ke2 {[%clk 0:02:23.1]}
12... Nxa1 {[%clk 0:02:09]} 13. d4 {[%clk 0:02:17.3]} 13... Bd7 {[%clk
0:01:58.5]} 14. Nc5 {[%clk 0:02:12.3]} 14... b5 {[%clk 0:01:11]} 15. Qd3 {[%clk
0:01:48]} 15... Rc8 {[%clk 0:01:05.9]} 16. b4 {[%clk 0:01:37.7]} 16... a5 {[%clk
0:00:58.9]} 17. a3 {[%clk 0:01:36.8]} 17... axb4 {[%clk 0:00:58.9]} 18. axb4
{[%clk 0:01:37.5]} 18... Bxc5 {[%clk 0:00:56.7]} 19. dxc5 {[%clk 0:01:37.3]}
19... Bc6 {[%clk 0:00:54.3]} 20. Bxc6+ {[%clk 0:01:34.8]} 20... Rxc6 {[%clk
0:00:54]} 21. Qf3 {[%clk 0:01:24.3]} 21... Qa8 {[%clk 0:00:28.6]} 22. Qxg4
{[%clk 0:01:21.5]} 22... Rxc5 {[%clk 0:00:29]} 23. Qxg7 {[%clk 0:01:16.9]} 23...
Qxh1 {[%clk 0:00:26.2]} 24. Qxh8+ {[%clk 0:01:16]} 24... Ke7 {[%clk 0:00:24.9]}
25. bxc5 {[%clk 0:01:15.7]} 25... Qxc1 {[%clk 0:00:25.4]} 26. Qd4 {[%clk
0:01:09.9]} 26... Qc2+ {[%clk 0:00:21.6]} 27. Kf3 {[%clk 0:01:10.5]} 27... Nb3
{[%clk 0:00:21]} 28. Qd6+ {[%clk 0:01:11]} 28... Kf6 {[%clk 0:00:12.9]} 29. Ne4+
{[%clk 0:01:09.5]} 29... Kg6 {[%clk 0:00:13.5]} 30. Qd8 {[%clk 0:01:02.6]} 30...
Kg7 {[%clk 0:00:07.6]} 31. Qf6+ {[%clk 0:00:58.2]} 31... Kf8 {[%clk 0:00:08]}
32. Qd8+ {[%clk 0:00:56.9]} 32... Kg7 {[%clk 0:00:08.4]} 33. Qg5+ {[%clk
0:00:56.2]} 33... Kf8 {[%clk 0:00:08.8]} 34. Qh6+ {[%clk 0:00:56.9]} 34... Ke7
{[%clk 0:00:08.7]} 35. Qh4+ {[%clk 0:00:57.2]} 35... Kf8 {[%clk 0:00:08.8]} 36.
Qh6+ {[%clk 0:00:30.9]} 36... Ke7 {[%clk 0:00:08.8]} 37. Ng5 {[%clk 0:00:23.9]}
37... Nd4+ {[%clk 0:00:07.4]} 38. Kg4 {[%clk 0:00:24.4]} 38... Qe2+ {[%clk
0:00:07.1]} 39. Kh3 {[%clk 0:00:23.2]} 39... Qf1+ {[%clk 0:00:07.6]} 40. Kg4
{[%clk 0:00:23.2]} 40... Qd1+ {[%clk 0:00:07.8]} 41. Kh3 {[%clk 0:00:22.3]}
41... Qf1+ {[%clk 0:00:08.5]} 42. Kg4 {[%clk 0:00:22.5]} 42... Qe2+ {[%clk
0:00:07.6]} 43. Kh3 {[%clk 0:00:05.5]} 43... Qf1+ {[%clk 0:00:07.7]} 1/2-1/2